Workbook

Sheet Testo
B34: https://en.wikipedia.org/wiki/K-means_clustering

Sheet output_risolutore
Z1: IMPLEMENTAZIONE DELLE DISTANZE UTILIZZANDO I NOMI c_1 c_2 e c_3
N4: Quadrato delle distanze Euclidee da ciascun centroide | Z4: Quadrato delle distanze Euclidee da ciascun centroide
B5: test data
B6: n | C6: VAR1 | D6: VAR2 | F6: cluster center 1 | H6: cluster center 2 | J6: cluster center 3 | M6: index | N6: dist c_1 | O6: dist c_2 | P6: dist c_3 | S6: class | T6: min distance | Y6: index | Z6: dist c_1 | AA6: dist c_2 | AB6: dist c_3
B7: 1 | C7: 4 | D7: 12 | F7: c_1 | H7: c_2 | J7: c_3 | M7: 1 | N7: =(($C7-$F$8)^2+($D7-$G$8)^2) -> 3.3125 | O7: =(($C7-$H$8)^2+($D7-$I$8)^2) -> 36.04 | P7: =(($C7-$J$8)^2+($D7-$K$8)^2) -> 76.52 | S7: =IF(MIN(N7:P7)=N7,"CL1",IF(MIN(N7:P7)=O7,"CL2","CL3")) -> CL1 | T7: =MIN(N7:P7) -> 3.3125 | U7: =IF(MIN(N7:P7)=N7,1,IF(MIN(N7:P7)=O7,2,3)) -> 1 | Y7: 1 | Z7: =SUMSQ(C7:D7-c_1) -> 3.3125 | AA7: =SUMSQ(C7:D7-c_2) -> 36.04 | AB7: =SUMSQ(C7:D7-c_3) -> 76.52
B8: 2 | C8: 5 | D8: 10 | F8: 3.5 | G8: 10.25 | H8: 9.2 | I8: 9 | J8: 5.6 | K8: 3.4 | M8: 2 | N8: =(($C8-$F$8)^2+($D8-$G$8)^2) -> 2.3125 | O8: =(($C8-$H$8)^2+($D8-$I$8)^2) -> 18.64 | P8: =(($C8-$J$8)^2+($D8-$K$8)^2) -> 43.92 | S8: =IF(MIN(N8:P8)=N8,"CL1",IF(MIN(N8:P8)=O8,"CL2","CL3")) -> CL1 | T8: =MIN(N8:P8) -> 2.3125 | U8: =IF(MIN(N8:P8)=N8,1,IF(MIN(N8:P8)=O8,2,3)) -> 1 | Y8: 2 | Z8: =SUMSQ(C8:D8-c_1) -> 2.3125 | AA8: =SUMSQ(C8:D8-c_2) -> 18.64 | AB8: =SUMSQ(C8:D8-c_3) -> 43.92
B9: 3 | C9: 8 | D9: 7 | M9: 3 | N9: 30.8125 | O9: 5.440000001 | P9: 18.72 | S9: CL2 | T9: 5.440000001 | U9: 2 | Y9: 3 | Z9: =SUMSQ(C9:D9-c_1) -> 30.8125 | AA9: =SUMSQ(C9:D9-c_2) -> 5.440000001 | AB9: =SUMSQ(C9:D9-c_3) -> 18.72
B10: 4 | C10: 5 | D10: 3 | M10: 4 | N10: 54.8125 | O10: 53.64 | P10: 0.52 | S10: CL3 | T10: 0.52 | U10: 3 | Y10: 4 | Z10: =SUMSQ(C10:D10-c_1) -> 54.8125 | AA10: =SUMSQ(C10:D10-c_2) -> 53.64 | AB10: =SUMSQ(C10:D10-c_3) -> 0.52
B11: 5 | C11: 5 | D11: 4 | M11: 5 | N11: 41.3125 | O11: 42.64 | P11: 0.7199999998 | S11: CL3 | T11: 0.7199999998 | U11: 3 | Y11: 5 | Z11: =SUMSQ(C11:D11-c_1) -> 41.3125 | AA11: =SUMSQ(C11:D11-c_2) -> 42.64 | AB11: =SUMSQ(C11:D11-c_3) -> 0.7199999998
B12: 6 | C12: 2 | D12: 11 | F12: 3 | G12: 10 | H12: 9 | I12: 8 | J12: 5 | K12: 4 | L12: INI | M12: 6 | N12: 2.8125 | O12: 55.84 | P12: 70.72 | S12: CL1 | T12: 2.8125 | U12: 1 | Y12: 6 | Z12: =SUMSQ(C12:D12-c_1) -> 2.8125 | AA12: =SUMSQ(C12:D12-c_2) -> 55.84 | AB12: =SUMSQ(C12:D12-c_3) -> 70.72
B13: 7 | C13: 5 | D13: 4 | M13: 7 | N13: 41.3125 | O13: 42.64 | P13: 0.7199999998 | S13: CL3 | T13: 0.7199999998 | U13: 3 | Y13: 7 | Z13: =SUMSQ(C13:D13-c_1) -> 41.3125 | AA13: =SUMSQ(C13:D13-c_2) -> 42.64 | AB13: =SUMSQ(C13:D13-c_3) -> 0.7199999998
B14: 8 | C14: 3 | D14: 8 | M14: 8 | N14: 5.3125 | O14: 39.44 | P14: 27.92 | S14: CL1 | T14: 5.3125 | U14: 1 | Y14: 8 | Z14: =SUMSQ(C14:D14-c_1) -> 5.3125 | AA14: =SUMSQ(C14:D14-c_2) -> 39.44 | AB14: =SUMSQ(C14:D14-c_3) -> 27.92
B15: 9 | C15: 6 | D15: 2 | M15: 9 | N15: 74.3125 | O15: 59.24000001 | P15: 2.12 | S15: CL3 | T15: 2.12 | U15: 3 | Y15: 9 | Z15: =SUMSQ(C15:D15-c_1) -> 74.3125 | AA15: =SUMSQ(C15:D15-c_2) -> 59.24000001 | AB15: =SUMSQ(C15:D15-c_3) -> 2.12
B16: 10 | C16: 7 | D16: 4 | M16: 10 | N16: 51.3125 | O16: 29.84 | P16: 2.32 | S16: CL3 | T16: 2.32 | U16: 3 | Y16: 10 | Z16: =SUMSQ(C16:D16-c_1) -> 51.3125 | AA16: =SUMSQ(C16:D16-c_2) -> 29.84 | AB16: =SUMSQ(C16:D16-c_3) -> 2.32
B17: 11 | C17: 10 | D17: 8 | M17: 11 | N17: 47.3125 | O17: 1.640000001 | P17: 40.52 | S17: CL2 | T17: 1.640000001 | U17: 2 | Y17: 11 | Z17: =SUMSQ(C17:D17-c_1) -> 47.3125 | AA17: =SUMSQ(C17:D17-c_2) -> 1.640000001 | AB17: =SUMSQ(C17:D17-c_3) -> 40.52
B18: 12 | C18: 8 | D18: 9 | M18: 12 | N18: 21.8125 | O18: 1.44 | P18: 37.12 | S18: CL2 | T18: 1.44 | U18: 2 | Y18: 12 | Z18: =SUMSQ(C18:D18-c_1) -> 21.8125 | AA18: =SUMSQ(C18:D18-c_2) -> 1.44 | AB18: =SUMSQ(C18:D18-c_3) -> 37.12
B19: 13 | C19: 10 | D19: 9 | M19: 13 | N19: 43.8125 | O19: 0.6400000003 | P19: 50.72 | S19: CL2 | T19: 0.6400000003 | U19: 2 | Y19: 13 | Z19: =SUMSQ(C19:D19-c_1) -> 43.8125 | AA19: =SUMSQ(C19:D19-c_2) -> 0.6400000003 | AB19: =SUMSQ(C19:D19-c_3) -> 50.72
B20: 14 | C20: 10 | D20: 12 | M20: 14 | N20: 45.3125 | O20: 9.639999998 | P20: 93.32 | S20: CL2 | T20: 9.639999998 | U20: 2 | Y20: 14 | Z20: =SUMSQ(C20:D20-c_1) -> 45.3125 | AA20: =SUMSQ(C20:D20-c_2) -> 9.639999998 | AB20: =SUMSQ(C20:D20-c_3) -> 93.32
T21: =SUM(T7:T20) -> 38.95 | X21: Funzione obiettivo
M23: Nella cella T20 si inserisce la funzione obiettivo che si vuole minimizzare
C24: Osservazione: | M24: In questo caso k=3, n=14
M25: c_1=zona F8:G8
M26: c_2=zona H8:I8
M27: c_3=zona J8:K8
C28: Verificare che i centroidi trovati dal risolutore corrispondano alle medie aritmetiche dei singoli gruppi (utilizzare per la verifica la funzione MEDIA.SE)
M29: Obiettivo: cercare i 6 numeri da inserire nella zona F8:K8 che minimizzano il numero contenuto nella cella obiettivo (T21)
S32: Vincolo | V32: 1 | W32: =COUNTIF(U$7:U$20,V32) -> 4 | X32: Numero di unità allocate al gruppo 1
S33: Le celle W32, W33 e W34 devono essere strettamente maggiori di 0 | V33: 2 | W33: =COUNTIF(U$7:U$20,V33) -> 5 | X33: Numero di unità allocate al gruppo 2
C34: Verifica tramite la funzione MEDIA.SE | V34: 3 | W34: 5 | X34: Numero di unità allocate al gruppo 3
C35: 3.5 è la media delle unità che fanno parte del gruppo 1 per la variabile VAR1
C36: 10.25 è la media delle unità che fanno parte del gruppo 1 per la variabile VAR1
C37: =AVERAGEIF($U$7:$U$20,1,C7:C20) -> 3.5 | D37: =AVERAGEIF($U$7:$U$20,1,D7:D20) -> 10.25 | S37: Ossia il minimo di queste 3 celle deve essere >0
T38: =MIN(W32:W34) -> 4

Sheet Output_macro_KM
A1: Row Title | B1: Centroid
A2: 1 | B2: 1
A3: 2 | B3: 1
A4: 3 | B4: 2
A5: 4 | B5: 3
A6: 5 | B6: 3
A7: 6 | B7: 1
A8: 7 | B8: 3
A9: 8 | B9: 1
A10: 9 | B10: 3
A11: 10 | B11: 3
A12: 11 | B12: 2
A13: 12 | B13: 2
A14: 13 | B14: 2
A15: 14 | B15: 2
B17: VAR1 | C17: VAR2
A18: Centroid 1 | B18: 3.5 | C18: 10.25
A19: Centroid 2 | B19: 9.2 | C19: 9
A20: Centroid 3 | B20: 5.6 | C20: 3.4
